bitfinex-derivatives/quotes_ETHF0:USTF0_20250213
["timestamp","ask_amount","ask_price","bid_price","bid_amount"]
[1739453289905,0.75193,2659.5,2659.4,0.75192]
[1739453290208,1.87951,2659.9,2659.3,3.21156512]
[1739453290409,0.75194,2659.4,2659.3,3.21156512]
[1739453290611,0.75194,2659.4,2659.3,4.89656512]
[1739453291809,0.75194,2659.4,2659.3,5.64852512]
[1739453292204,3.00089643,2659.8,2659.3,4.89656512]
[1739453292401,0.75194,2659.4,2659.3,5.64851512]
[1739453292702,0.5669,2660.1,2659.3,10.65746825]
[1739453292898,0.5669,2660.1,2659.7,3.2078]
[1739453293100,0.75182,2659.8,2659.7,4.8928]
[1739453293506,0.75182,2659.8,2659.7,1.685]
[1739453294300,3.7747,2660.1,2659.4,3.21079882]
[1739453294502,0.75191,2659.5,2659.4,3.21079882]
[1739453296810,0.75191,2659.5,2659.4,0.00299882]
[1739453299615,0.75191,2659.5,2659.4,3.21079882]
[1739453300015,0.75191,2659.5,2659.4,3.96273882]
[1739453300215,0.75191,2659.5,2659.4,3.21079882]
[1739453300411,0.75191,2659.5,2659.4,0.00299882]
[1739453300810,0.75191,2659.5,2659.4,3.96273882]
[1739453301314,0.75179,2660.0,2659.9,0.75177]
[1739453301521,0.7517,2660.3,2660.2,0.7517]
[1739453301812,0.75168,2660.3,2660.2,3.2078]
[1739453302019,1.87906,2660.6,2660.0,1.7106]
[1739453302221,0.75174,2660.1,2660.0,2.46237]
[1739453302623,0.75174,2660.1,2660.0,1.7106]
[1739453302810,0.75174,2660.1,2660.0,2.46237]
[1739453303226,0.75174,2660.1,2660.0,1.7106]
[1739453303413,0.75174,2660.1,2660.0,1.155]
[1739453306112,0.5634,2660.3,2659.9,3.2078]
[1739453306318,0.75177,2660.0,2659.9,4.8918]
[1739453306624,0.75177,2660.0,2659.9,5.64359]
[1739453306822,0.75177,2660.1,2660.0,0.75175]
[1739453307021,0.75177,2660.1,2660.0,1.31925]
[1739453307221,5.65361,2660.6,2660.0,0.5675]
[1739453307524,0.75173,2660.2,2660.1,0.75172]
[1739453307724,5.65361,2660.6,2660.0,0.5675]
[1739453308024,0.75172,2660.3,2660.2,0.75168]
[1739453308216,0.75174,2660.1,2660.0,1.31926]
[1739453308416,0.75174,2660.1,2660.0,0.5675]
[1739453308919,0.75174,2660.1,2660.0,1.31927]
[1739453309224,0.75174,2660.1,2660.0,0.5675]
[1739453310028,0.75174,2660.1,2660.0,2.2515]
[1739453310620,0.75174,2660.1,2660.0,3.00327]
[1739453311120,3.7746,2660.6,2660.0,2.2515]
[1739453311322,0.7517,2660.3,2660.2,0.75168]
[1739453311825,0.7517,2660.3,2660.0,43.0515]
[1739453311826,3.7746,2660.6,2660.0,43.0515]
[1739453312026,1.31841,2660.6,2660.5,0.75162]
[1739453312323,0.75721708,2660.7,2660.6,0.7516]
[1739453312729,0.75721708,2660.7,2660.6,1.3483]
[1739453313025,0.00563708,2660.7,2660.6,1.3483]
[1739453313429,0.75720708,2660.7,2660.6,1.3483]
[1739453313618,0.00563708,2660.7,2660.6,1.3483]
[1739453314030,0.75720708,2660.7,2660.6,1.3483]
[1739453314631,0.75720708,2660.7,2660.6,0.5967]
[1739453315526,0.7516,2660.6,2660.5,3.2078]
[1739453316030,2.4428,2660.6,2660.5,3.2078]
[1739453321535,1.8984,2660.6,2660.5,3.2078]
[1739453322927,4.3546,2660.6,2660.1,1.1819]
[1739453323129,4.3546,2660.6,2659.5,3.2078]
[1739453323130,3.2078,2660.3,2659.5,3.2078]
[1739453323324,0.75191,2659.5,2659.4,0.00299882]
[1739453324630,0.75191,2659.5,2659.4,0.75493882]
[1739453325026,0.75191,2659.5,2659.4,0.00299882]
[1739453325428,3.2078,2660.3,2659.4,3.21079882]
[1739453325623,5.65767,2660.3,2659.5,6.33718608]
[1739453325836,5.65767,2660.3,2659.8,0.7518]
[1739453325837,0.75181,2659.9,2659.8,0.7518]
[1739453326033,6.21325287,2660.3,2659.5,4.45740608]
[1739453326234,0.75187,2659.7,2659.6,0.75186]
[1739453326430,0.75187,2659.7,2659.6,41.55186]
[1739453326628,1.87938,2660.1,2659.6,40.8]
[1739453326834,2.44984,2660.3,2659.8,3.2078]
[1739453327134,1.8791,2660.5,2660.2,3.2078]
[1739453327435,0.75177,2660.0,2659.9,1.87628]
[1739453328036,0.75175,2660.1,2660.0,0.75174]
[1739453328441,0.75177,2660.0,2659.9,0.5555]
[1739453331133,3.2078,2660.4,2660.1,0.75171]
[1739453331134,0.75173,2660.2,2660.1,0.75171]
[1739453331334,0.75174,2660.1,2660.0,1.34496]
[1739453331534,0.75174,2660.1,2660.0,0.5932]
[1739453333740,0.55703807,2660.3,2659.8,3.2078]
[1739453333939,0.75179,2659.9,2659.8,3.2078]
[1739453334340,1.1046,2660.0,2659.8,3.2078]
[1739453334533,1.85637,2660.0,2659.9,0.75179]
[1739453334933,0.75179,2659.9,2659.8,3.95959]
[1739453335936,0.75179,2659.9,2659.8,3.2078]
[1739453336941,0.75179,2659.9,2659.8,3.95962]
[1739453337337,0.75179,2659.9,2659.8,3.2078]
[1739453337941,0.75185,2659.7,2659.6,42.74467]
[1739453338542,0.75185,2659.7,2659.6,1.94467]
[1739453339444,0.1,3890.0,2659.6,1.1928]
[1739453339646,0.75179,2659.9,2659.8,3.2078]
[1739453340841,1.87938,2660.1,2659.6,1.1928]
[1739453341040,0.75185,2659.7,2659.6,1.94468]
[1739453341240,0.75185,2659.7,2659.6,1.1928]
[1739453341643,0.75185,2659.7,2659.4,3.21079882]
[1739453341644,0.75191,2659.5,2659.4,3.21079882]
[1739453341847,0.75191,2659.5,2659.4,4.33409882]
[1739453342035,0.75191,2659.5,2659.4,5.08603882]
[1739453342440,0.75191,2659.5,2659.4,4.33409882]
[1739453342643,0.75191,2659.5,2659.4,1.12629882]
[1739453342842,0.75191,2659.5,2659.4,0.00299882]
[1739453345946,0.75191,2659.5,2659.4,0.75493882]
[1739453346142,0.75188,2659.7,2659.6,0.75187]
[1739453346451,0.75191,2659.5,2659.4,4.38329882]
[1739453347456,0.75191,2659.5,2659.4,3.21079882]
[1739453347843,0.75191,2659.5,2659.4,0.00299882]
[1739453351257,3.95971,2659.5,2659.4,0.00299882]
[1739453351952,3.2078,2659.5,2659.3,0.00376512]
[1739453352158,1.32154,2659.4,2659.3,0.00376512]
[1739453352458,0.75202,2659.1,2659.0,3.2078]
[1739453355656,3.2078,2659.1,2658.4,4.3697]
[1739453355852,0.75219,2658.5,2658.4,4.3697]
[1739453356358,0.75219,2658.5,2658.4,3.2078]
[1739453356750,0.75236,2657.9,2657.8,3.2078]
[1739453357355,0.75236,2657.9,2657.8,4.50779]
[1739453357661,0.75236,2657.9,2657.8,3.7554]
[1739453358154,0.75233,2658.0,2657.8,3.7554]
[1739453358359,0.75236,2657.9,2657.8,4.50779]
[1739453358768,0.75236,2657.9,2657.8,3.7554]
[1739453359361,0.75236,2657.9,2657.8,3.2078]
[1739453360861,0.75239,2657.8,2657.7,0.5465]
[1739453361058,0.5731,2657.8,2657.4,3.7744]
[1739453361259,0.75247,2657.5,2657.4,4.3536]
[1739453361956,0.75247,2657.5,2657.4,1.1458]
[1739453362151,0.5519,2657.7,2657.1,3.2078]
[1739453362358,0.5519,2657.7,2657.2,1.1415]
[1739453362754,0.75252,2657.4,2657.2,1.1415]
[1739453362953,0.5519,2657.7,2657.2,1.1415]
[1739453363153,0.75247,2657.5,2657.4,3.96029]
[1739453363356,0.75247,2657.5,2657.4,3.2078]
[1739453363754,0.5519,2657.7,2657.6,0.75244]
[1739453364056,0.75243,2657.7,2657.6,0.75244]
[1739453364258,0.75246,2657.6,2657.5,0.75245]
[1739453364563,0.75247,2657.5,2657.4,0.75249]
[1739453364760,0.5731,2657.8,2657.2,1.1415]
[1739453364960,0.75252,2657.4,2657.3,0.75251]
[1739453365268,0.75253,2657.3,2657.2,1.89404]
[1739453365658,0.75253,2657.3,2657.2,1.1415]
[1739453366462,0.5631,2657.5,2657.2,1.1415]
[1739453366769,0.75253,2657.3,2657.2,1.1415]
[1739453367665,1.1412,2657.5,2657.1,3.2078]
[1739453367863,0.75256,2657.2,2657.1,3.96036]
[1739453368368,0.5631,2657.5,2657.1,5.08922]
[1739453368669,0.75255,2657.3,2657.2,0.75253]
[1739453368966,0.75251,2657.5,2657.4,0.75248]
[1739453369167,1.88107,2657.7,2657.4,0.75248]
[1739453369465,0.75254,2657.4,2657.3,0.75251]
[1739453369667,1.1455,2657.8,2657.2,1.8814]
[1739453369871,0.00563708,2657.9,2657.6,3.2078]
[1739453370063,0.75239,2657.8,2657.7,1.3155]
[1739453370367,0.75239,2657.8,2657.7,41.3631]
[1739453370568,0.75800708,2657.9,2657.8,0.75239]
[1739453370867,0.00563708,2657.9,2657.8,1.33869]
[1739453371065,1.88036,2658.7,2657.8,1.33869]
[1739453371066,6.2028,2659.0,2657.8,1.90229]
[1739453371263,0.75222,2658.4,2658.3,3.96003]
[1739453371461,3.05812,2658.9,2658.3,3.2078]
[1739453371764,0.75221,2658.5,2658.4,1.1494]
[1739453372765,0.75225,2658.3,2658.2,0.00563708]
[1739453374067,1.32375,2658.3,2658.2,0.00563708]
[1739453374676,0.75225,2658.3,2658.2,7.08e-06]
[1739453374971,2.46175,2658.3,2658.2,7.08e-06]
[1739453375567,1.88081,2658.1,2657.4,3.2078]
[1739453375768,0.75244,2657.6,2657.5,1.1404]
[1739453376676,1.88069,2658.2,2657.5,1.1404]
[1739453376875,0.75242,2657.7,2657.5,1.1404]
[1739453377068,0.75242,2657.7,2657.5,1.89285]
[1739453377272,3.03339,2658.2,2657.6,0.75243]
[1739453377469,0.75241,2657.8,2657.7,3.2078]
[1739453378164,0.5906,2658.2,2657.7,3.2078]
[1739453378372,0.75231,2658.1,2658.0,3.2078]
[1739453378573,0.75231,2658.1,2658.0,4.3106]
[1739453379173,1.7057,2658.6,2658.0,4.3106]
[1739453379568,0.7523,2658.1,2658.0,4.3106]
[1739453379763,0.7523,2658.1,2658.0,1.1028]
[1739453379967,0.7523,2658.1,2658.0,4.3106]
[1739453380269,1.7057,2658.6,2658.0,4.3106]
[1739453380469,1.1287,2658.6,2658.3,3.2078]
[1739453380675,0.75223,2658.4,2658.3,3.2078]
[1739453381167,0.7523,2658.1,2658.0,1.1028]
[1739453383277,0.7523,2658.1,2658.0,1.85513]
[1739453383676,0.7523,2658.1,2658.0,1.1028]
[1739453384265,0.5814,2658.5,2658.0,1.1028]
[1739453384466,0.75226,2658.3,2658.2,0.75225]
[1739453384675,0.75227,2658.2,2658.1,3.96009]
[1739453384879,0.75227,2658.2,2658.1,3.2078]
[1739453385081,0.75225,2658.4,2658.3,0.75222]
[1739453385283,0.75226,2658.3,2658.2,0.75226]
[1739453386276,0.57463708,2658.7,2658.1,3.2078]
[1739453386681,0.75225,2658.4,2658.3,0.75222]
[1739453386882,0.75222,2658.5,2658.4,0.7522]
[1739453387081,0.75222,2658.5,2658.4,1.3189]
[1739453387282,0.57463708,2658.7,2658.2,0.75226]
[1739453387484,0.00563708,2658.7,2658.4,3.2078]
[1739453387671,0.75216,2658.6,2658.5,1.86347]
[1739453388078,0.75216,2658.6,2658.5,1.1113]
[1739453388680,0.00563708,2658.7,2658.1,1.31899]
[1739453388881,0.75225,2658.3,2658.2,1.1269]
[1739453390475,3.2078,2658.3,2657.7,3.2078]
[1739453390684,0.75239,2657.8,2657.7,4.3542]
[1739453391075,3.2078,2658.0,2657.2,40.8]
[1739453391274,3.2078,2657.5,2656.4,3.2078]
[1739453391472,3.2078,2657.5,2655.1,0.18576689]
[1739453391473,3.2078,2656.7,2656.0,3.2078]
[1739453391672,0.5737,2656.6,2656.0,3.2078]
[1739453391881,0.75287,2656.1,2656.0,3.2078]
[1739453392078,0.57933708,2656.6,2656.0,3.2078]
[1739453392274,0.75286,2656.2,2655.9,3.2078]
[1739453392483,0.57933708,2656.6,2655.9,3.2078]
[1739453392686,0.00563708,2656.6,2656.5,0.75276]
[1739453392978,1.6795,2657.6,2657.3,0.75252]
[1739453393183,1.6795,2657.6,2657.1,3.2078]
[1739453393184,1.1315,2657.6,2657.1,3.2078]
[1739453393476,0.5737,2657.6,2657.0,3.2078]
[1739453393676,0.75259,2657.1,2657.0,3.2078]
[1739453393887,0.75269,2656.8,2656.5,3.2078]
[1739453394583,0.0056478,2656.9,2656.5,3.2078]
[1739453395588,0.75272,2656.7,2656.5,3.2078]
[1739453395787,0.0056478,2656.9,2656.5,3.2078]
[1739453396188,0.7583078,2656.9,2656.5,3.7516]
[1739453396383,0.0056478,2656.9,2656.5,3.7516]
[1739453396888,0.75269,2656.8,2656.6,40.8]
[1739453397088,0.7527,2656.7,2656.6,40.8]
[1739453397384,0.75273,2656.6,2656.5,3.7516]
[1739453397688,0.75273,2656.6,2656.4,40.8056478]
[1739453397689,0.75274,2656.6,2656.4,40.8056478]
[1739453397884,0.0056478,2656.9,2656.5,3.2078]
[1739453398086,0.75255,2657.3,2657.0,0.7526]
[1739453398289,0.75256,2657.2,2657.1,3.2078]
[1739453398586,1.6814,2657.8,2657.1,3.2078]
[1739453398787,3.56245,2657.8,2657.1,3.2078]
[1739453398992,0.75256,2657.2,2657.1,3.2078]
[1739453399490,0.0056478,2657.4,2657.1,3.2078]
[1739453399696,0.0056478,2657.4,2657.3,0.75253]
[1739453399886,0.0056478,2657.4,2657.2,0.5821]
[1739453400092,0.75256,2657.2,2657.1,3.2078]
[1739453400293,0.7581578,2657.4,2657.1,3.2078]
[1739453400492,3.2078,2658.8,2657.1,3.2078]
[1739453400689,3.2078,2658.4,2657.9,3.2078]
[1739453400890,0.75242,2657.7,2657.6,3.2078]
[1739453401095,0.5596,2658.3,2657.6,3.2078]
[1739453401396,1.76917,2659.3,2657.9,3.2078]
[1739453401594,3.2078,2664.1,2661.0,3.2078]
[1739453401802,0.06580952,2664.0,2663.8,2.2341]
[1739453401987,0.74985,2666.8,2666.7,1.71796]
[1739453402293,60.26618793,2670.3,2667.3,3.2078]
[1739453402600,8.18539438,2671.6,2670.5,3.2078]
[1739453402798,8.18539438,2671.6,2667.9,0.36]
[1739453402799,3.2078,2676.3,2672.7,3.2078]
[1739453403092,3.2078,2676.5,2674.8,3.2078]
[1739453403298,0.0056102,2674.0,2673.4,0.0056102]
[1739453403594,3.2078,2672.1,2670.7,1.60939312]
[1739453403802,3.2078,2673.1,2670.8,3.2078]
[1739453404004,3.2078,2673.0,2672.3,4.78345384]
[1739453404301,3.2078,2673.0,2669.4,4.25367556]
[1739453404302,3.2078,2675.1,2672.8,3.2078]
[1739453404501,3.2078,2677.1,2674.5,3.2078]
[1739453404706,3.2078,2679.5,2677.0,3.2078]
[1739453404995,3.2078,2679.5,2673.7,0.00561304]
[1739453404996,0.01342,2674.5,2673.7,0.00561304]
[1739453405301,0.74804,2673.3,2671.8,0.74843]
[1739453405501,0.74804,2673.3,2668.8,3.74639]
[1739453405502,0.7485,2671.6,2671.5,13.89706654]
[1739453405693,3.2078,2670.7,2669.7,13.89706654]
[1739453405895,3.2078,2670.4,2669.7,13.89706654]
[1739453406102,0.00560936,2672.8,2672.6,7.4489]
[1739453406304,3.2078,2672.7,2672.5,1.1068]
[1739453406498,3.2078,2672.6,2671.1,3.2078]
[1739453406698,3.2078,2674.8,2672.6,4.13049608]
[1739453406997,0.74863,2671.2,2669.8,0.93609766]
[1739453407198,3.2078,2670.6,2669.5,3.2078]
[1739453407396,3.2078,2670.0,2668.9,0.3752]
[1739453407599,1.87600936,2672.9,2667.7,4.24540315]
[1739453407600,0.005,2678.1,2669.1,3.66425566]
[1739453407899,3.2078,2670.9,2669.6,3.2078]
[1739453408098,3.2078,2671.0,2669.8,3.2078]
[1739453408297,3.2078,2670.8,2669.7,3.2078]
[1739453408505,3.2078,2669.8,2668.2,0.93596037]
[1739453408803,3.2078,2668.6,2667.5,0.3752]
[1739453408997,3.2078,2667.8,2666.5,3.2078]
[1739453409196,3.2078,2667.7,2666.0,0.3752]
[1739453409503,3.2078,2668.1,2667.5,3.2078]
[1739453409696,3.2078,2668.1,2667.2,3.2078]
[1739453409901,3.2078,2669.9,2667.8,3.2078]
[1739453410199,0.375,2670.7,2669.5,3.2078]
[1739453410402,0.375,2670.1,2669.1,3.2078]
[1739453410602,0.5394,2672.2,2668.0,1.87372]
[1739453410603,3.2078,2671.2,2670.0,3.2078]
[1739453410799,3.2078,2672.6,2671.1,3.2078]
[1739453410995,0.74788,2673.9,2672.5,40.8]
[1739453411196,3.2078,2673.9,2672.5,44.0078]
[1739453411402,3.2078,2673.9,2673.2,3.2078]
[1739453411599,0.07477474,2674.7,2673.8,3.2078]
[1739453411803,0.07477474,2674.7,2674.0,3.2078]
[1739453412208,3.2078,2674.6,2673.5,3.2078]
[1739453412505,0.5884,2676.9,2674.7,0.74762]
[1739453412506,3.2078,2675.9,2674.7,0.74762]
[1739453412808,0.74733,2675.8,2675.3,3.2078]
[1739453413103,3.2078,2675.8,2673.5,5.29964488]
[1739453413404,3.2078,2678.5,2675.9,3.2078]
[1739453413702,3.2078,2677.9,2677.1,3.2078]
[1739453413903,3.2078,2677.8,2676.6,3.2078]
[1739453414103,3.2078,2678.1,2677.6,3.2078]
[1739453414409,0.00559973,2677.8,2676.8,3.2078]
[1739453414612,0.00559973,2677.8,2677.6,3.2078]
[1739453414905,3.2078,2678.5,2677.7,4.78579777]
[1739453415102,3.9543,2678.8,2678.4,3.2078]
[1739453415302,3.2078,2678.8,2678.4,3.2078]
[1739453415498,3.2078,2678.5,2677.6,0.00559973]
[1739453415702,3.2078,2678.4,2677.7,3.2078]
[1739453415911,0.7468,2677.7,2677.6,9.73e-06]
[1739453416107,3.2078,2677.7,2675.9,3.2078]
[1739453416298,3.2078,2677.4,2676.1,3.2078]
[1739453416506,3.2078,2677.2,2676.4,3.2078]
[1739453416700,3.2078,2677.2,2674.5,40.8]
[1739453416701,0.7473,2675.9,2675.8,3.2078]
[1739453416907,3.2078,2677.1,2674.2,4.82689349]
[1739453417209,3.2078,2676.9,2675.9,0.3736]
[1739453417406,0.00559973,2675.9,2675.4,0.00559973]
[1739453417610,3.2078,2675.5,2675.4,0.00559973]
[1739453417910,3.2078,2675.5,2673.4,3.2078]
[1739453418116,3.2078,2674.3,2673.4,3.2078]
[1739453418300,3.2078,2673.9,2672.8,3.2078]
[1739453418502,3.2078,2673.2,2672.0,3.2078]
[1739453418810,3.2078,2673.2,2670.0,2.08149626]
[1739453418811,3.2078,2672.2,2671.1,0.3744]
[1739453418999,3.95608,2672.4,2672.3,0.00561125]
[1739453419201,0.00561125,2672.9,2672.3,0.00561125]
[1739453419511,0.74828,2672.4,2672.3,1.25e-06]
[1739453419810,3.20779875,2672.3,2670.3,3.2078]
[1739453420105,3.2078,2670.4,2668.7,3.2078]
[1739453420303,3.2078,2669.4,2668.4,0.74939]
[1739453420501,3.2078,2669.4,2666.8,1.8746]
[1739453420502,3.2078,2669.1,2667.7,0.3752]
[1739453420707,3.2078,2668.8,2667.8,3.2078]
[1739453420902,3.2078,2669.6,2668.1,3.2078]
[1739453421212,3.2078,2670.4,2669.0,3.2078]
[1739453421409,3.2078,2670.8,2669.8,3.2078]
[1739453421711,3.2078,2669.9,2669.2,3.2078]
[1739453421911,0.5739,2672.3,2669.2,3.2078]
[1739453421912,3.2078,2669.6,2669.2,3.2078]
[1739453422107,3.2078,2670.4,2669.2,3.2078]
[1739453422408,3.2078,2671.5,2670.3,3.2078]
[1739453422804,3.7817,2672.3,2670.7,3.2078]
[1739453423004,0.74896,2670.0,2669.9,3.2078]
[1739453423205,3.2078,2670.7,2669.9,3.2078]
[1739453423406,3.2078,2670.9,2670.4,40.8]
[1739453423609,0.5739,2672.3,2670.4,40.8]
[1739453423610,3.2078,2671.2,2670.4,3.2078]
[1739453423810,3.7817,2672.3,2671.0,3.2078]
[1739453424013,0.5739,2672.3,2671.0,3.2078]
[1739453424209,0.74843,2671.9,2671.5,3.2078]
[1739453424403,3.2078,2673.4,2671.8,3.2078]
[1739453424609,0.0748139,2673.3,2672.5,3.2078]
[1739453424809,3.2078,2674.0,2673.1,3.2078]
[1739453425008,3.2078,2674.0,2673.0,3.2078]
[1739453425204,3.2078,2673.7,2672.3,3.2078]
[1739453425411,3.2078,2672.4,2671.8,40.8]
[1739453425617,1.87036,2672.9,2671.8,40.8]
[1739453425815,0.00561136,2673.2,2672.7,3.2078]
[1739453426018,0.00561136,2673.2,2672.7,0.00561136]
[1739453426310,3.2078,2673.8,2672.7,0.00561136]
[1739453426510,0.0748027,2673.7,2672.7,0.00561136]
[1739453426711,0.74842,2671.9,2671.8,40.8]
[1739453426919,3.2078,2671.9,2671.2,3.2078]
[1739453427110,0.74866,2671.1,2670.6,3.2078]
[1739453427316,3.2078,2671.6,2670.9,3.2078]
[1739453427514,0.74878,2670.7,2670.5,3.2078]
[1739453427710,3.2078,2670.6,2670.0,3.2078]
[1739453427906,3.2078,2671.0,2670.1,40.8]
[1739453428111,3.2078,2670.4,2670.3,0.00561136]
[1739453428307,3.95664,2670.4,2670.3,1.36e-06]
[1739453428510,0.74928,2668.9,2668.4,3.2078]
[1739453428711,3.2078,2670.7,2668.7,3.2078]
[1739453428910,0.74841,2672.0,2670.7,0.74874]
[1739453429116,0.06555521,2671.9,2671.8,3.2078]
[1739453429313,3.2078,2672.9,2671.8,3.2078]
[1739453429619,0.5862,2673.1,2671.1,3.2078]
[1739453429620,3.2078,2672.3,2671.1,3.2078]
[1739453429827,3.2078,2671.7,2670.6,3.2078]
[1739453430015,0.06551977,2671.6,2671.1,3.2078]
[1739453430322,0.06551977,2671.6,2670.1,3.2078]
[1739453430323,3.2078,2671.3,2670.1,3.2078]
[1739453430616,3.2078,2670.4,2669.3,3.2078]
[1739453430822,3.2078,2670.4,2669.6,3.2078]
[1739453431013,0.06557616,2670.3,2669.3,3.2078]
[1739453431210,3.2078,2670.2,2669.1,3.2078]
[1739453431412,3.2078,2669.6,2669.1,3.2078]
[1739453431613,3.2078,2669.6,2668.9,3.2078]
[1739453431821,3.2078,2669.6,2667.8,0.3752]
[1739453431822,3.2078,2669.2,2667.9,3.2078]
[1739453432017,3.2078,2668.8,2667.7,3.2078]
[1739453432216,3.2078,2668.2,2667.4,3.2078]
[1739453432416,3.2078,2667.8,2667.1,3.2078]
[1739453432723,3.7458,2669.3,2667.5,0.00562208]
[1739453432724,3.27343262,2668.1,2667.5,0.00562208]
[1739453432923,0.06563262,2668.1,2667.7,3.2078]
[1739453433120,0.00562208,2667.7,2667.5,0.00562208]
[1739453433323,0.74962,2667.6,2667.5,2.08e-06]
[1739453433716,0.00562208,2667.7,2667.5,2.08e-06]
[1739453433918,0.74962,2667.6,2667.5,2.08e-06]
[1739453434114,3.27345133,2667.6,2665.4,3.2078]
[1739453434415,3.2078,2667.1,2665.9,3.2078]
[1739453434615,3.2078,2666.9,2665.7,3.2078]
[1739453434821,0.00562208,2667.7,2666.8,3.2078]
[1739453435021,0.00562208,2667.7,2665.8,40.8]
[1739453435022,0.00562208,2667.7,2667.3,3.2078]
[1739453435218,0.06563262,2668.1,2667.3,3.2078]
[1739453435418,0.5775,2668.7,2668.0,3.2078]
[1739453435618,0.74907,2669.6,2668.6,3.2078]
[1739453435813,3.2078,2669.1,2668.4,3.2078]
[1739453436023,0.5955,2670.7,2668.8,3.2078]
[1739453436024,3.2078,2670.2,2668.8,3.2078]
[1739453436216,3.2078,2670.2,2669.6,3.2078]
[1739453436520,3.2078,2670.2,2669.8,3.2078]
[1739453436722,3.2078,2669.9,2668.6,3.2078]
[1739453436923,3.2078,2668.9,2667.4,8.98317037]
[1739453437224,3.2078,2669.0,2668.4,3.2078]
[1739453437426,3.2078,2668.7,2667.8,3.2078]
[1739453437618,0.74938,2668.5,2668.1,3.2078]
[1739453437819,3.21342208,2669.0,2668.1,3.2078]
[1739453438015,0.06527577,2668.9,2668.4,3.2078]
[1739453438219,0.00562208,2669.0,2668.8,3.2078]
[1739453438617,0.74901,2669.8,2668.9,40.8]
[1739453438829,3.2078,2669.5,2668.9,40.8]
[1739453439130,3.2078,2669.2,2668.0,3.2078]
[1739453439316,1.87257,2669.8,2667.3,3.2078]
[1739453439317,3.2078,2668.6,2667.3,3.2078]
[1739453439522,3.2078,2668.0,2666.8,0.92146302]
[1739453439718,3.2078,2667.5,2666.8,0.92146302]
[1739453439925,3.2078,2668.1,2667.4,3.2078]
[1739453440128,0.00562208,2668.2,2668.0,3.2078]
[1739453440528,0.00562208,2668.2,2668.1,3.2078]
[1739453440921,0.5635,2669.7,2668.3,0.74943]
[1739453441120,0.74922,2669.1,2669.0,40.8]
[1739453441327,3.2078,2669.1,2667.8,3.2078]
[1739453441528,3.2078,2668.8,2668.0,3.2078]
[1739453441724,3.2078,2668.5,2667.5,3.2078]
[1739453441925,3.2078,2668.8,2668.1,3.2078]
[1739453442126,0.74957,2667.8,2667.7,3.2078]
[1739453442426,0.74957,2667.8,2667.7,2.08e-06]
[1739453442629,6.74957,2667.8,2667.7,2.08e-06]
[1739453443130,6.0,2667.8,2665.5,3.2078]
[1739453443331,3.2078,2666.6,2665.6,3.2078]
[1739453443625,1.87432,2667.3,2666.1,3.2078]
[1739453443626,0.74987,2666.8,2666.1,3.2078]
[1739453443830,3.2078,2667.8,2666.7,3.2078]
[1739453444027,3.2078,2667.8,2666.3,3.2078]
[1739453444229,3.2078,2667.0,2665.9,3.2078]
[1739453444424,0.74976,2667.1,2667.0,2.08e-06]
[1739453444630,3.95756,2667.1,2667.0,2.08e-06]
[1739453444825,1.87456,2666.9,2665.5,3.2078]
[1739453445034,3.2078,2666.6,2665.5,3.2078]
[1739453445232,3.2078,2666.3,2665.5,3.2078]
[1739453445426,3.2078,2666.6,2665.5,3.2078]
[1739453445832,0.75019,2665.6,2665.5,3.2078]
[1739453446029,3.2078,2666.2,2665.5,3.2078]
[1739453446226,0.00562208,2666.3,2666.2,0.75002]
[1739453446529,0.5732,2667.7,2666.1,3.2078]
[1739453446731,0.74976,2667.1,2667.0,3.20218149]
[1739453446924,3.2078,2667.5,2666.1,3.2078]
[1739453447231,0.5732,2667.7,2666.2,3.2078]
[1739453447232,3.2078,2667.2,2666.2,3.2078]
[1739453447630,3.2078,2666.5,2665.5,3.2078]
[1739453447830,3.21342208,2666.8,2666.2,2.08e-06]
[1739453448032,3.21342208,2666.8,2666.3,3.2078]
[1739453448227,0.00562208,2666.8,2666.4,3.2078]
[1739453448433,0.74993,2666.5,2666.4,3.2078]
[1739453448623,0.74999,2666.3,2666.2,3.20780208]
[1739453448826,3.2078,2666.5,2666.2,2.08e-06]
[1739453449037,0.74999,2666.3,2666.2,2.08e-06]
[1739453449732,6.74999,2666.3,2666.2,2.08e-06]
[1739453450334,6.0,2666.3,2665.1,3.2078]
[1739453450635,6.0,2666.3,2663.9,3.2078]
[1739453450636,3.2078,2665.5,2663.9,3.2078]
[1739453450831,3.2078,2665.8,2664.2,3.2078]
[1739453451029,0.75037,2665.0,2664.7,3.2078]
[1739453451238,3.2078,2665.5,2664.7,3.2078]
[1739453451435,3.2078,2666.1,2664.6,3.2078]
[1739453451638,3.2078,2666.4,2665.5,3.2078]
[1739453451933,3.2078,2666.4,2665.7,3.2078]
[1739453452129,0.00562208,2665.6,2664.7,3.2078]
[1739453452329,0.75041,2664.8,2664.7,3.2078]
[1739453452534,0.00562208,2665.6,2664.6,3.2078]
[1739453452737,0.00562208,2665.6,2664.7,3.2078]
[1739453452926,0.75033,2665.1,2665.0,3.2078]
[1739453453130,0.00562208,2665.6,2665.0,3.2078]
[1739453453331,3.2078,2665.2,2664.3,3.2078]
[1739453453533,3.2078,2665.2,2663.5,0.5467]
[1739453453534,0.75052,2664.4,2663.9,3.2078]
[1739453453734,3.2078,2665.0,2663.5,3.2078]
[1739453453936,3.2078,2664.1,2663.2,3.2078]
[1739453454137,3.2078,2664.1,2663.3,3.2078]
[1739453454336,1.87618,2664.6,2663.6,3.2078]
[1739453454635,0.00562208,2663.9,2663.3,3.2078]
[1739453454940,0.7508,2663.5,2663.3,3.2078]
[1739453455142,6.00562208,2663.9,2662.6,3.44074198]
[1739453455338,0.75089,2663.1,2663.0,3.2078]